lending/lending_fUSD_20241214
["ID","MTS","AMOUNT","RATE_DAILY","PERIOD"]
[345309409,1734144665598,-500.0,0.00021199,3]
[345309410,1734144665608,-500.0,0.00021199,3]
[345309411,1734144665618,-500.0,0.00021199,3]
[345309412,1734144665628,-500.0,0.00021199,3]
[345309413,1734144665638,-277.37640331,0.00021199,3]
[345309414,1734144665648,-202.2,0.000212,2]
[345309415,1734144665657,-5800.0,0.000212,2]
[345309416,1734144665667,-377.72,0.000212,2]
[345309417,1734144665676,-1959305.4278753,0.000212,2]
[345309418,1734144665686,-585.0,0.000212,9]
[345309419,1734144665695,-151.0,0.000212,2]
[345309420,1734144665705,-151.0,0.000212,2]
[345309421,1734144665714,-151.0,0.000212,2]
[345309422,1734144665724,-151.0,0.000212,2]
[345309423,1734144665734,-150.0,0.00021216,2]
[345309424,1734144665743,-1266.352,0.00021234,2]
[345309425,1734144665752,-567.08,0.00021234,2]
[345309426,1734144665761,-634.655,0.00021234,2]
[345309427,1734144665770,-2013.143,0.00021234,2]
[345309428,1734144665780,-150.0,0.00021234,2]
[345309429,1734144665789,-566.839,0.00021234,2]
[345309430,1734144665799,-1895.0,0.00021234,2]
[345309431,1734144665808,-817.0,0.00021234,2]
[345309432,1734144665818,-3765.0,0.00021234,2]
[345309433,1734144665828,-1260.308,0.00021234,2]
[345309434,1734144665838,-930.0,0.00021234,2]
[345309435,1734144665848,-3643.651,0.00021234,2]
[345309436,1734144665858,-536.457,0.00021234,2]
[345309437,1734144665867,-3880.0,0.00021234,2]
[345309438,1734144665877,-4826.299,0.00021234,2]
[345309439,1734144665887,-150.0,0.00021234,2]
[345309440,1734144665897,-1168.0,0.00021234,2]
[345309441,1734144665907,-888.922,0.00021234,2]
[345309442,1734144665917,-500.0,0.00021242,3]
[345309443,1734144665927,-500.0,0.00021242,3]
[345309444,1734144665936,-500.0,0.00021242,3]
[345309445,1734144665947,-500.0,0.00021242,3]
[345309446,1734144665956,-225.56,0.00021242,3]
[345309447,1734144665966,-547.84,0.00021242,3]
[345309448,1734144665976,-989.46,0.00021242,3]
[345309449,1734144665985,-1060.99,0.00021242,3]
[345309450,1734144665995,-516.55,0.00021242,3]
[345309451,1734144666005,-644.96,0.00021243,3]
[345309452,1734144666014,-500.0,0.00021243,3]
[345309453,1734144666023,-500.0,0.00021243,3]
[345309454,1734144666033,-777.99,0.00021243,3]
[345309455,1734144666043,-500.0,0.00021243,3]
[345309456,1734144666052,-590.26,0.00021243,3]
[345309457,1734144666062,-500.0,0.00021243,3]
[345309458,1734144666073,-500.0,0.00021243,3]
[345309459,1734144666092,-500.0,0.00021243,3]
[345309460,1734144666102,-500.0,0.00021243,3]
[345309461,1734144666111,-500.0,0.00021243,3]
[345309462,1734144666121,-500.0,0.00021243,3]
[345309463,1734144666131,-500.0,0.00021243,3]
[345309464,1734144666141,-500.0,0.00021243,3]
[345309465,1734144666151,-500.0,0.00021243,3]
[345309466,1734144666161,-500.0,0.00021243,3]
[345309467,1734144666171,-500.0,0.00021243,3]
[345309468,1734144666181,-543.26,0.00021243,3]
[345309469,1734144666190,-500.0,0.00021243,3]
[345309470,1734144666200,-500.0,0.00021243,3]
[345309471,1734144666210,-500.0,0.00021243,3]
[345309472,1734144666220,-500.0,0.00021243,3]
[345309473,1734144666232,-500.0,0.00021243,3]
[345309474,1734144666243,-506.96,0.00021243,3]
[345309475,1734144666252,-500.0,0.00021243,3]
[345309476,1734144666262,-500.0,0.00021243,3]
[345309477,1734144666276,-500.0,0.00021243,3]
[345309478,1734144666286,-500.0,0.00021243,3]
[345309479,1734144666296,-1045.6,0.00021243,3]
[345309480,1734144666307,-626.01,0.00021243,3]
[345309481,1734144666318,-840.85,0.00021243,3]
[345309482,1734144666328,-801.67,0.00021243,3]
[345309483,1734144666337,-500.0,0.00021243,3]
[345309484,1734144666349,-500.0,0.00021243,3]
[345309485,1734144666359,-342.34,0.00021243,3]
[345309486,1734144666369,-500.0,0.00021243,3]
[345309487,1734144666379,-500.0,0.00021243,3]
[345309488,1734144666388,-1111.82,0.00021243,3]
[345309489,1734144666399,-212.53760074,0.00021243,3]
[345309490,1734144666408,-500.0,0.00021243,3]
[345309491,1734144666418,-3737.48,0.00021243,3]
[345309492,1734144666427,-500.0,0.00021243,3]
[345309493,1734144666437,-6090.4,0.00021243,3]
[345309494,1734144666447,-226.17761553,0.00021243,3]
[345309495,1734144666457,-4578.85,0.00021243,3]
[345309496,1734144666467,-2839.26,0.00021243,3]
[345309497,1734144666476,-199.77781478,0.00021243,3]
[345309498,1734144666486,-1070.02,0.00021243,3]
[345309499,1734144666496,-966.06,0.00021243,3]
[345309500,1734144666506,-3324.62,0.00021243,3]
[345309501,1734144666515,-501.32,0.00021243,3]
[345309502,1734144666525,-553.71,0.00021243,3]
[345309503,1734144666534,-500.0,0.00021243,3]
[345309504,1734144666544,-526.88,0.00021243,3]
[345309505,1734144666554,-500.0,0.00021243,3]
[345309506,1734144666563,-1012.42,0.00021243,3]
[345309507,1734144666573,-1432.47,0.00021243,3]
[345309508,1734144666582,-500.0,0.00021243,3]
[345309509,1734144666592,-176.38700347,0.00021243,3]
[345309510,1734144666602,-500.0,0.00021243,3]
[345309511,1734144666612,-2934.66,0.00021243,3]
[345309512,1734144666622,-191.866916,0.00021243,3]
[345309513,1734144666631,-500.0,0.00021244,3]
[345309514,1734144666641,-411.21668328,0.00021244,3]
[345309515,1734144666651,-4002.01,0.00021244,3]
[345309516,1734144666660,-556.02,0.00021244,3]
[345309517,1734144666671,-552.16,0.00021244,3]
[345309518,1734144666680,-5390.27,0.00021244,3]
[345309519,1734144666690,-11722.45,0.00021244,3]
[345309520,1734144666699,-813.27,0.00021244,3]
[345309521,1734144666710,-500.0,0.00021244,3]
[345309522,1734144666719,-647.25,0.00021244,3]
[345309523,1734144666729,-853.88,0.00021244,3]
[345309524,1734144666739,-2057.32,0.00021244,3]
[345309525,1734144666749,-644.96,0.00021245,3]
[345309526,1734144666759,-154.39474241,0.00021245,3]
[345309527,1734144666768,-500.0,0.00021245,3]
[345309528,1734144666777,-777.99,0.00021245,3]
[345309529,1734144666786,-500.0,0.00021245,3]
[345309530,1734144666795,-590.26,0.00021245,3]
[345309531,1734144666804,-500.0,0.00021245,3]
[345309532,1734144666814,-500.0,0.00021245,3]
[345309533,1734144666823,-500.0,0.00021245,3]
[345309534,1734144666832,-452.81276518,0.00021245,3]
[345309535,1734144666842,-500.0,0.00021245,3]
[345309536,1734144666851,-500.0,0.00021245,3]
[345309537,1734144666861,-500.0,0.00021245,3]
[345309538,1734144666871,-236.22570946,0.00021245,3]
[345309539,1734144666880,-500.0,0.00021245,3]
[345309540,1734144666890,-500.0,0.00021245,3]
[345309541,1734144666900,-576.54364002,0.00021245,3]
[345309542,1734144666910,-500.0,0.00021245,3]
[345309543,1734144666920,-506.96,0.00021245,3]
[345309544,1734144666930,-500.0,0.00021245,3]
[345309545,1734144666939,-191.14845101,0.00021245,3]
[345309546,1734144666950,-500.0,0.00021245,3]
[345309547,1734144666960,-1045.6,0.00021245,3]
[345309548,1734144666970,-626.01,0.00021245,3]
[345309549,1734144666980,-801.67,0.00021245,3]
[345309550,1734144666990,-500.0,0.00021245,3]
[345309551,1734144667001,-500.0,0.00021245,3]
[345309552,1734144667011,-500.0,0.00021245,3]
[345309553,1734144667021,-500.0,0.00021245,3]
[345309554,1734144667031,-562.44924747,0.00021245,3]
[345309555,1734144667041,-501.32,0.00021245,3]
[345309556,1734144667050,-381.43196075,0.00021245,3]
[345309557,1734144667061,-333.21411,0.00021246,8]
[345309558,1734144667070,-333.214111,0.00021246,9]
[345309559,1734144667081,-500.0,0.00021246,3]
[345309560,1734144667091,-500.0,0.00021246,3]
[345309561,1734144667100,-500.0,0.00021246,3]
[345309562,1734144667111,-598.74,0.00021246,3]
[345309563,1734144667121,-989.46,0.00021246,3]
[345309564,1734144667131,-1060.99,0.00021246,3]
[345309565,1734144667142,-516.55,0.00021246,3]
[345309566,1734144667151,-999.88,0.00021246,2]
[345309567,1734144667162,-333.214111,0.00021247,2]
[345309568,1734144667172,-644.96,0.00021247,3]
[345309569,1734144667182,-333.214111,0.00021247,3]
[345309570,1734144667192,-333.214111,0.00021247,5]
[345309571,1734144667202,-333.214111,0.00021247,4]
[345309572,1734144667212,-500.0,0.00021247,3]
[345309573,1734144667222,-333.214111,0.00021247,8]
[345309574,1734144667231,-333.214111,0.00021247,7]
[345309575,1734144667241,-777.99,0.00021247,3]
[345309576,1734144667251,-333.214111,0.00021247,9]
[345309577,1734144667261,-333.214111,0.00021247,6]
[345309578,1734144667272,-500.0,0.00021247,3]
[345309579,1734144667284,-590.26,0.00021247,3]
[345309580,1734144667294,-274.58052936,0.00021247,3]
[345309581,1734144667304,-500.0,0.00021247,3]
[345309582,1734144667315,-500.0,0.00021247,3]
[345309583,1734144667325,-500.0,0.00021247,3]
[345309584,1734144667335,-500.0,0.00021247,3]
[345309585,1734144667345,-500.0,0.00021247,3]
[345309586,1734144667355,-500.0,0.00021247,3]
[345309587,1734144667365,-315.74942179,0.00021247,3]
[345309588,1734144667375,-500.0,0.00021247,3]
[345309589,1734144667385,-500.0,0.00021247,3]
[345309590,1734144667394,-543.26,0.00021247,3]
[345309591,1734144667404,-543.26,0.00021247,3]
[345309592,1734144667413,-468.97308724,0.00021247,3]
[345309593,1734144667423,-602.22,0.00021247,3]
[345309594,1734144667433,-500.0,0.00021247,3]
[345309595,1734144667443,-346.06389417,0.00021247,3]
[345309596,1734144667453,-634.02,0.00021247,3]
[345309597,1734144667462,-506.96,0.00021247,3]
[345309598,1734144667472,-500.0,0.00021247,3]
[345309599,1734144667482,-183.84,0.00021247,3]
[345309600,1734144667491,-500.0,0.00021247,3]
[345309601,1734144667501,-500.0,0.00021247,3]
[345309602,1734144667511,-1045.6,0.00021247,3]
[345309603,1734144667521,-626.01,0.00021247,3]
[345309604,1734144667531,-840.85,0.00021247,3]
[345309605,1734144667540,-840.85,0.00021247,3]
[345309606,1734144667550,-801.67,0.00021247,3]
[345309607,1734144667560,-500.0,0.00021247,3]
[345309608,1734144667571,-197.02,0.00021247,3]
[345309609,1734144667584,-500.0,0.00021247,3]
[345309610,1734144667594,-500.0,0.00021247,3]
[345309611,1734144667603,-344.02,0.00021247,3]
[345309612,1734144667613,-500.0,0.00021247,3]
[345309613,1734144667623,-500.0,0.00021247,3]
[345309614,1734144667632,-1111.82,0.00021247,3]
[345309615,1734144667642,-1111.82,0.00021247,3]
[345309616,1734144667651,-4002.01,0.00021247,3]
[345309617,1734144667661,-4002.01,0.00021247,3]
[345309618,1734144667671,-500.0,0.00021247,3]
[345309619,1734144667680,-500.0,0.00021247,3]
[345309620,1734144667690,-3737.48,0.00021247,3]
[345309621,1734144667699,-3737.48,0.00021247,3]
[345309622,1734144667709,-989.46,0.00021247,3]
[345309623,1734144667719,-6090.4,0.00021247,3]
[345309624,1734144667729,-6090.4,0.00021247,3]
[345309625,1734144667738,-1060.99,0.00021247,3]
[345309626,1734144667749,-516.55,0.00021247,3]
[345309627,1734144667759,-4578.85,0.00021247,3]
[345309628,1734144667769,-4578.85,0.00021247,3]
[345309629,1734144667779,-2839.26,0.00021247,3]
[345309630,1734144667788,-2839.26,0.00021247,3]
[345309631,1734144667798,-1070.02,0.00021247,3]
[345309632,1734144667807,-1070.02,0.00021247,3]
[345309633,1734144667817,-556.02,0.00021247,3]
[345309634,1734144667827,-556.02,0.00021247,3]
[345309635,1734144667837,-966.06,0.00021247,3]
[345309636,1734144667847,-966.06,0.00021247,3]
[345309637,1734144667856,-3324.62,0.00021247,3]
[345309638,1734144667866,-3324.62,0.00021247,3]
[345309639,1734144667876,-501.32,0.00021247,3]
[345309640,1734144667885,-552.16,0.00021247,3]
[345309641,1734144667895,-552.16,0.00021247,3]
[345309642,1734144667904,-5390.27,0.00021247,3]
[345309643,1734144667914,-553.71,0.00021247,3]
[345309644,1734144667923,-553.71,0.00021247,3]
[345309645,1734144667933,-500.0,0.00021247,3]
[345309646,1734144667943,-526.88,0.00021247,3]
[345309647,1734144667953,-526.88,0.00021247,3]
[345309648,1734144667963,-1012.42,0.00021247,3]
[345309649,1734144667973,-1012.42,0.00021247,3]
[345309650,1734144667982,-1432.47,0.00021247,3]
[345309651,1734144667992,-1432.47,0.00021247,3]
[345309652,1734144668002,-500.0,0.00021247,3]
[345309653,1734144668012,-500.0,0.00021247,3]
[345309654,1734144668021,-11722.45,0.00021247,3]
[345309655,1734144668031,-500.0,0.00021247,3]
[345309656,1734144668040,-500.0,0.00021247,3]
[345309657,1734144668050,-2934.66,0.00021247,3]
[345309658,1734144668060,-2934.66,0.00021247,3]
[345309659,1734144668070,-813.27,0.00021247,3]
[345309660,1734144668082,-813.27,0.00021247,3]
[345309661,1734144668092,-500.0,0.00021247,3]
[345309662,1734144668102,-647.25,0.00021247,3]
[345309663,1734144668267,-647.25,0.00021247,3]
[345309664,1734144668279,-853.88,0.00021247,3]
[345309665,1734144668288,-853.88,0.00021247,3]
[345309666,1734144668299,-2057.32,0.00021247,3]
[345309667,1734144668308,-2057.32,0.00021247,3]
[345309668,1734144668318,-996.33,0.00021247,2]
[345309669,1734144668330,-1010.25,0.00021247,2]
[345309670,1734144668339,-1000.21,0.00021248,2]
[345309671,1734144668349,-666.21411,0.00021248,6]
[345309672,1734144668359,-666.21411,0.00021248,7]
[345309673,1734144668368,-666.21411,0.00021248,8]
[345309674,1734144668377,-666.21411,0.00021248,9]
[345309675,1734144668386,-644.96,0.00021248,3]
[345309676,1734144668396,-644.96,0.00021248,3]
[345309677,1734144668405,-644.96,0.00021248,3]
[345309678,1734144668415,-644.96,0.00021248,3]
[345309679,1734144668425,-500.0,0.00021248,3]
[345309680,1734144668435,-500.0,0.00021248,3]
[345309681,1734144668444,-503.25,0.00021248,3]
[345309682,1734144668453,-777.99,0.00021248,3]
[345309683,1734144668462,-777.99,0.00021248,3]
[345309684,1734144668471,-777.99,0.00021248,3]
[345309685,1734144668480,-777.99,0.00021248,3]
[345309686,1734144668490,-333.214111,0.00021248,2]
[345309687,1734144668499,-500.0,0.00021248,3]
[345309688,1734144668508,-500.0,0.00021248,3]
[345309689,1734144668518,-230.68692219,0.00021248,3]
[345309690,1734144668527,-151.0,0.00021248,2]
[345309691,1734144668536,-333.214111,0.00021248,3]
[345309692,1734144668545,-333.214111,0.00021248,4]
[345309693,1734144668555,-590.26,0.00021248,3]
[345309694,1734144668564,-590.26,0.00021248,3]
[345309695,1734144668573,-590.26,0.00021248,3]
[345309696,1734144668585,-590.26,0.00021248,3]
[345309697,1734144668595,-333.214111,0.00021248,5]
[345309698,1734144668604,-500.0,0.00021248,3]
[345309699,1734144668613,-372.3810369,0.00021248,3]
[345309700,1734144668623,-500.0,0.00021248,3]
[345309701,1734144668632,-500.0,0.00021248,3]
[345309702,1734144668643,-500.0,0.00021248,3]
[345309703,1734144668653,-500.0,0.00021248,3]
[345309704,1734144668662,-500.0,0.00021248,3]
[345309705,1734144668671,-500.0,0.00021248,3]
[345309706,1734144668681,-500.0,0.00021248,3]
[345309707,1734144668691,-500.0,0.00021248,3]
[345309708,1734144668701,-500.0,0.00021248,3]
[345309709,1734144668710,-500.0,0.00021248,3]
[345309710,1734144668720,-509.92861011,0.00021248,3]
[345309711,1734144668731,-500.0,0.00021248,3]
[345309712,1734144668744,-500.0,0.00021248,3]
[345309713,1734144668754,-500.0,0.00021248,3]
[345309714,1734144668765,-500.0,0.00021248,3]
[345309715,1734144668774,-500.0,0.00021248,3]
[345309716,1734144668784,-347.28125963,0.00021248,3]
[345309717,1734144668794,-151.378023,0.00021248,2]
[345309718,1734144668803,-151.0,0.00021248,2]
[345309719,1734144668812,-543.26,0.00021248,3]
[345309720,1734144668821,-543.26,0.00021248,3]
[345309721,1734144668832,-543.26,0.00021248,3]
[345309722,1734144668842,-543.26,0.00021248,3]
[345309723,1734144668851,-543.26,0.00021248,3]
[345309724,1734144668860,-543.26,0.00021248,3]
[345309725,1734144668869,-543.41440304,0.00021248,3]
[345309726,1734144668878,-506.96,0.00021248,3]
[345309727,1734144668887,-506.96,0.00021248,3]
[345309728,1734144668896,-506.96,0.00021248,3]
[345309729,1734144668906,-506.96,0.00021248,3]
[345309730,1734144668915,-500.0,0.00021248,3]
[345309731,1734144668924,-500.0,0.00021248,3]
[345309732,1734144668933,-500.0,0.00021248,3]
[345309733,1734144668943,-500.0,0.00021248,3]
[345309734,1734144668952,-500.0,0.00021248,3]
[345309735,1734144668961,-500.0,0.00021248,3]
[345309736,1734144668971,-500.0,0.00021248,3]
[345309737,1734144668981,-500.0,0.00021248,3]
[345309738,1734144668990,-1045.6,0.00021248,3]
[345309739,1734144668999,-1045.6,0.00021248,3]
[345309740,1734144669009,-1045.6,0.00021248,3]
[345309741,1734144669018,-1045.6,0.00021248,3]
[345309742,1734144669028,-626.01,0.00021248,3]
[345309743,1734144669038,-626.01,0.00021248,3]
[345309744,1734144669047,-626.01,0.00021248,3]
[345309745,1734144669056,-626.01,0.00021248,3]
[345309746,1734144669065,-840.85,0.00021248,3]
[345309747,1734144669075,-840.85,0.00021248,3]
[345309748,1734144669086,-840.85,0.00021248,3]
[345309749,1734144669096,-840.85,0.00021248,3]
[345309750,1734144669105,-840.85,0.00021248,3]
[345309751,1734144669114,-840.9,0.00021248,3]
[345309752,1734144669123,-801.67,0.00021248,3]
[345309753,1734144669133,-801.67,0.00021248,3]
[345309754,1734144669142,-801.67,0.00021248,3]
[345309755,1734144669151,-801.67,0.00021248,3]
[345309756,1734144669161,-500.0,0.00021248,3]
[345309757,1734144669171,-500.0,0.00021248,3]
[345309758,1734144669181,-500.0,0.00021248,3]
[345309759,1734144669190,-500.0,0.00021248,3]
[345309760,1734144669200,-500.0,0.00021248,3]
[345309761,1734144669210,-500.0,0.00021248,3]
[345309762,1734144669220,-500.0,0.00021248,3]
[345309763,1734144669229,-500.0,0.00021248,3]
[345309764,1734144669239,-500.0,0.00021248,3]
[345309765,1734144669248,-500.0,0.00021248,3]
[345309766,1734144669258,-500.0,0.00021248,3]
[345309767,1734144669267,-500.0,0.00021248,3]
[345309768,1734144669282,-382.7,0.00021248,3]
[345309769,1734144669292,-500.0,0.00021248,3]
[345309770,1734144669302,-500.0,0.00021248,3]
[345309771,1734144669312,-500.0,0.00021248,3]
[345309772,1734144669323,-184.87692718,0.00021248,3]
[345309773,1734144669336,-500.0,0.00021248,3]
[345309774,1734144669349,-500.0,0.00021248,3]
[345309775,1734144669359,-500.0,0.00021248,3]
[345309776,1734144669368,-500.0,0.00021248,3]
[345309777,1734144669378,-1111.82,0.00021248,3]
[345309778,1734144669387,-1111.82,0.00021248,3]
[345309779,1734144669397,-1111.82,0.00021248,3]
[345309780,1734144669406,-1111.82,0.00021248,3]
[345309781,1734144669415,-1111.82,0.00021248,3]
[345309782,1734144669424,-1111.82,0.00021248,3]
[345309783,1734144669434,-1111.94434423,0.00021248,3]
[345309784,1734144669444,-4002.01,0.00021248,3]
[345309785,1734144669453,-4002.01,0.00021248,3]
[345309786,1734144669463,-4002.01,0.00021248,3]
[345309787,1734144669472,-500.0,0.00021248,3]
[345309788,1734144669481,-4002.01,0.00021248,3]
[345309789,1734144669490,-500.0,0.00021248,3]
[345309790,1734144669499,-4002.17802509,0.00021248,3]
[345309791,1734144669508,-500.0,0.00021248,3]
[345309792,1734144669518,-500.0,0.00021248,3]
[345309793,1734144669526,-500.0,0.00021248,3]
[345309794,1734144669534,-235.4,0.00021248,3]
[345309795,1734144669543,-3737.48,0.00021248,3]
[345309796,1734144669551,-3737.48,0.00021248,3]
[345309797,1734144669559,-3737.48,0.00021248,3]
[345309798,1734144669568,-3737.48,0.00021248,3]
[345309799,1734144669576,-3737.48,0.00021248,3]
[345309800,1734144669586,-3737.48,0.00021248,3]
[345309801,1734144669594,-3737.57023941,0.00021248,3]
[345309802,1734144669603,-989.46,0.00021248,3]
[345309803,1734144669611,-989.46,0.00021248,3]
[345309804,1734144669619,-989.46,0.00021248,3]
[345309805,1734144669627,-989.46,0.00021248,3]
[345309806,1734144669636,-989.49203239,0.00021248,3]
[345309807,1734144669643,-6090.4,0.00021248,3]
[345309808,1734144669652,-6090.4,0.00021248,3]
[345309809,1734144669660,-6090.4,0.00021248,3]
[345309810,1734144669668,-6090.4,0.00021248,3]
[345309811,1734144669676,-6090.4,0.00021248,3]
[345309812,1734144669684,-6090.4,0.00021248,3]
[345309813,1734144669692,-6090.57318695,0.00021248,3]
[345309814,1734144669701,-1060.99,0.00021248,3]
[345309815,1734144669709,-1060.99,0.00021248,3]
[345309816,1734144669718,-1060.99,0.00021248,3]
[345309817,1734144669727,-1060.99,0.00021248,3]
[345309818,1734144669735,-1061.09,0.00021248,3]
[345309819,1734144669744,-516.55,0.00021248,3]
[345309820,1734144669752,-516.55,0.00021248,3]
[345309821,1734144669762,-516.55,0.00021248,3]
[345309822,1734144669770,-516.55,0.00021248,3]
[345309823,1734144669779,-516.77,0.00021248,3]
[345309824,1734144669787,-4578.85,0.00021248,3]
[345309825,1734144669795,-4578.85,0.00021248,3]
[345309826,1734144669804,-4578.85,0.00021248,3]
[345309827,1734144669813,-4578.85,0.00021248,3]
[345309828,1734144669821,-4578.85,0.00021248,3]
[345309829,1734144669833,-4578.85,0.00021248,3]
[345309830,1734144669848,-4579.01317049,0.00021248,3]
[345309831,1734144669857,-2839.26,0.00021248,3]
[345309832,1734144669866,-2839.26,0.00021248,3]
[345309833,1734144669875,-2839.26,0.00021248,3]
[345309834,1734144669885,-2839.26,0.00021248,3]
[345309835,1734144669894,-2839.26,0.00021248,3]
[345309836,1734144669903,-2839.26,0.00021248,3]
[345309837,1734144669912,-2839.31834992,0.00021248,3]
[345309838,1734144669921,-1070.02,0.00021248,3]
[345309839,1734144669930,-1070.02,0.00021248,3]
[345309840,1734144669939,-1070.02,0.00021248,3]
[345309841,1734144669949,-1070.02,0.00021248,3]
[345309842,1734144669958,-1070.02,0.00021248,3]
[345309843,1734144669967,-1070.02,0.00021248,3]
[345309844,1734144669976,-1070.06524127,0.00021248,3]
[345309845,1734144669986,-556.02,0.00021248,3]
[345309846,1734144669995,-556.02,0.00021248,3]
[345309847,1734144670005,-556.02,0.00021248,3]
[345309848,1734144670015,-556.02,0.00021248,3]
[345309849,1734144670024,-556.14457134,0.00021248,3]
[345309850,1734144670034,-966.06,0.00021248,3]
[345309851,1734144670043,-966.06,0.00021248,3]
[345309852,1734144670052,-966.06,0.00021248,3]
[345309853,1734144670062,-966.06,0.00021248,3]
[345309854,1734144670071,-966.06,0.00021248,3]
[345309855,1734144670082,-966.06,0.00021248,3]
[345309856,1734144670092,-966.20744109,0.00021248,3]
[345309857,1734144670101,-3324.62,0.00021248,3]
[345309858,1734144670111,-3324.62,0.00021248,3]
[345309859,1734144670120,-3324.62,0.00021248,3]
[345309860,1734144670130,-3324.62,0.00021248,3]
[345309861,1734144670139,-3324.62,0.00021248,3]
[345309862,1734144670149,-3324.62,0.00021248,3]
[345309863,1734144670158,-3324.80929139,0.00021248,3]
[345309864,1734144670168,-501.32,0.00021248,3]
[345309865,1734144670178,-501.32,0.00021248,3]
[345309866,1734144670188,-501.32,0.00021248,3]
[345309867,1734144670197,-501.32,0.00021248,3]
[345309868,1734144670207,-552.16,0.00021248,3]
[345309869,1734144670217,-552.16,0.00021248,3]
[345309870,1734144670227,-552.16,0.00021248,3]
[345309871,1734144670236,-552.16,0.00021248,3]
[345309872,1734144670246,-552.33674255,0.00021248,3]
[345309873,1734144670255,-5390.27,0.00021248,3]
[345309874,1734144670265,-5390.27,0.00021248,3]
[345309875,1734144670278,-5390.27,0.00021248,3]
[345309876,1734144670287,-5390.27,0.00021248,3]
[345309877,1734144670297,-5390.37100017,0.00021248,3]
[345309878,1734144670307,-553.71,0.00021248,3]
[345309879,1734144670317,-553.71,0.00021248,3]
[345309880,1734144670327,-553.71,0.00021248,3]
[345309881,1734144670337,-553.71,0.00021248,3]
[345309882,1734144670348,-553.71,0.00021248,3]
[345309883,1734144670357,-553.71,0.00021248,3]
[345309884,1734144670367,-553.75653348,0.00021248,3]
[345309885,1734144670378,-526.88,0.00021248,3]
[345309886,1734144670387,-526.88,0.00021248,3]
[345309887,1734144670397,-526.88,0.00021248,3]
[345309888,1734144670406,-526.88,0.00021248,3]
[345309889,1734144670415,-526.88,0.00021248,3]
[345309890,1734144670424,-526.88,0.00021248,3]
[345309891,1734144670434,-526.94219003,0.00021248,3]
[345309892,1734144670444,-1012.42,0.00021248,3]
[345309893,1734144670453,-1012.42,0.00021248,3]
[345309894,1734144670463,-1012.42,0.00021248,3]
[345309895,1734144670473,-1012.42,0.00021248,3]
[345309896,1734144670482,-1012.42,0.00021248,3]
[345309897,1734144670492,-1012.42,0.00021248,3]
[345309898,1734144670546,-1012.58,0.00021248,3]
[345309899,1734144670555,-1432.47,0.00021248,3]
[345309900,1734144670565,-1432.47,0.00021248,3]
[345309901,1734144670574,-1432.47,0.00021248,3]
[345309902,1734144670585,-1432.47,0.00021248,3]
[345309903,1734144670594,-1432.47,0.00021248,3]
[345309904,1734144670603,-1432.47,0.00021248,3]
[345309905,1734144670612,-1432.67614497,0.00021248,3]
[345309906,1734144670621,-500.0,0.00021248,3]
[345309907,1734144670630,-500.0,0.00021248,3]
[345309908,1734144670639,-500.0,0.00021248,3]